fUSD/lending_fUSD_20240615
["ID","MTS","AMOUNT","RATE_DAILY","PERIOD"]
[329513067,1718409780994,1324.72,0.00024329,30]
[329513068,1718409997467,500.0,0.00025,30]
[329513072,1718410062007,500.0,0.00025,30]
[329513073,1718410096270,1004.0,0.00028,90]
[329513075,1718410167126,-310.0,0.00013413,2]
[329513076,1718410167182,-2514.58309854,0.00013413,2]
[329513077,1718410167253,-155.0,0.00013413,2]
[329513078,1718410167288,-155.0,0.00013414,2]
[329513079,1718410167343,-5586.98275761,0.00013414,2]
[329513080,1718410167382,-3102.76307355,0.00013414,2]
[329513081,1718410167424,-792.99144726,0.00013415,2]
[329513082,1718410167453,-626.25773369,0.00013415,2]
[329513083,1718410167492,-9226.68140711,0.00013416,2]
[329513084,1718410167540,-499.94431687,0.00013417,2]
[329513085,1718410174376,-150.04209124,0.00013417,2]
[329513086,1718410235733,-651.0,0.00013416,2]
[329513090,1718410235900,-6848.01025656,0.00013417,2]
[329513091,1718410235988,-8915.89650835,0.00013417,2]
[329513092,1718410236030,-543.83019264,0.00013417,2]
[329513093,1718410236044,-1661.1859856,0.00013417,2]
[329513094,1718410236072,-2312.65249563,0.00013417,2]
[329513095,1718410236111,-2338.37648856,0.00013422,2]
[329513096,1718410236123,-156.90145973,0.00013435,2]
[329513097,1718410236208,-220.20036284,0.00013535,2]
[329513098,1718410236286,-423.39893674,0.00013535,2]
[329513099,1718410236343,-166.21313967,0.00013536,2]
[329513100,1718410236380,-252.71151233,0.00013536,2]
[329513101,1718410236399,-461.75755126,0.00013536,2]
[329513102,1718410236490,-840.7198583,0.00013536,2]
[329513103,1718410236500,-7104.4756616,0.00013536,2]
[329513104,1718410236512,-155.0,0.00013536,2]
[329513105,1718410236581,-2822.92960416,0.00013536,2]
[329513106,1718410236592,-400.0,0.00013537,2]
[329513107,1718410236680,-16000.0,0.00013537,2]
[329513108,1718410236700,-156.90145973,0.00014079,2]
[329513109,1718410236736,-156.90145973,0.00014722,2]
[329513110,1718410236764,-156.90145973,0.00015366,2]
[329513111,1718410236781,-156.90145973,0.0001601,2]
[329513112,1718410236800,-156.90145973,0.00016653,2]
[329513113,1718410236815,-1249.76802523,0.00017224,2]
[329513114,1718410236834,-2146.90543146,0.00017249,2]
[329513115,1718410236884,-7546.10929998,0.00017259,2]
[329513116,1718410236932,-156.90145973,0.00017297,2]
[329513117,1718410237011,-499.99,0.00017534,2]
[329513118,1718410237046,-472.39,0.00017692,2]
[329513119,1718410237076,-5899.36,0.00017808,2]
[329513120,1718410237092,-156.90145973,0.00017941,2]
[329513121,1718410237104,-3699.3,0.00018041,2]
[329513122,1718410237115,-156.90145973,0.00018585,2]
[329513123,1718410237171,-2161.28,0.00018922,2]
[329513124,1718410237271,-182.05,0.00019054,2]
[329513125,1718410237332,-356.62,0.00019093,2]
[329513126,1718410237409,-155.36,0.0001917,2]
[329513127,1718410237438,-156.90145973,0.00019228,2]
[329513128,1718410237495,-500.0,0.0001927,2]
[329513129,1718410237543,-155.36,0.0001937,2]
[329513130,1718410237555,-12265.38,0.00019424,2]
[329513131,1718410237566,-155.36,0.0001957,2]
[329513132,1718410237613,-890.77,0.00019594,2]
[329513133,1718410237666,-327.28,0.00019716,2]
[329513134,1718410237785,-155.36,0.0001977,2]
[329513135,1718410237864,-250.0,0.00019837,2]
[329513136,1718410237893,-1005.14,0.00019862,2]
[329513137,1718410237904,-172.84,0.00019868,2]
[329513140,1718410237987,-156.90145973,0.00019872,2]
[329513144,1718410238073,-472.39,0.00019956,2]
[329513147,1718410238090,-155.36,0.0001997,2]
[329513150,1718410238225,-752.3450718,0.0002,10]
[329513153,1718410238313,-226.78109354,0.000201,2]
[329513155,1718410238372,-155.36,0.00020169,2]
[329513157,1718410238460,-156.90145973,0.00020516,2]
[329513162,1718410238537,-258.1163,0.00020563,2]
[329513164,1718410238564,-3756.1229,0.00020563,2]
[329513166,1718410238583,-696.66,0.00020641,2]
[329513168,1718410238597,-696.66,0.00020647,2]
[329513170,1718410238608,-696.66,0.00020652,2]
[329513172,1718410238620,-696.66,0.00020658,2]
[329513174,1718410238648,-696.66,0.00020663,2]
[329513176,1718410238701,-696.66,0.00020669,2]
[329513178,1718410238728,-696.66,0.00020674,2]
[329513179,1718410238739,-696.66,0.00020679,2]
[329513180,1718410238797,-696.66,0.00020685,2]
[329513183,1718410238837,-696.66,0.0002069,2]
[329513185,1718410238877,-696.66,0.00020696,2]
[329513187,1718410238891,-696.66,0.00020701,2]
[329513189,1718410238931,-696.66,0.00020707,2]
[329513191,1718410238982,-696.66,0.00020712,2]
[329513193,1718410238993,-696.66,0.00020717,2]
[329513195,1718410239041,-696.66,0.00020723,2]
[329513197,1718410239072,-696.66,0.00020728,2]
[329513198,1718410239116,-696.66,0.00020734,2]
[329513202,1718410239188,-696.66,0.00020739,2]
[329513204,1718410239200,-696.66,0.00020744,2]
[329513205,1718410239225,-253.13001085,0.00020817,2]
[329513206,1718410239273,-1005.14,0.00020855,2]
[329513207,1718410239304,-1250.0,0.00021,2]
[329513209,1718410239345,-163.20656799,0.00021033,2]
[329513211,1718410239356,-156.90145973,0.00021159,2]
[329513213,1718410239384,-173.16,0.00021195,2]
[329513215,1718410239405,-445.713,0.00021646,2]
[329513216,1718410239435,-5744.162,0.00021646,2]
[329513218,1718410239446,-290.0,0.00021646,2]
[329513221,1718410239459,-5155.0,0.00021646,2]
[329513222,1718410239491,-605.062,0.00021646,2]
[329513225,1718410239546,-2161.28,0.00021662,2]
[329513227,1718410239572,-2289.8435,0.00021801,2]
[329513229,1718410239589,-156.90145973,0.00021803,2]
[329513231,1718410239603,-446.59982926,0.00021809,2]
[329513233,1718410239653,-211.02246414,0.00021815,2]
[329513234,1718410239665,-157.24016084,0.00021815,2]
[329513236,1718410239696,-155.0,0.00021815,2]
[329513239,1718410239710,-184.75177569,0.00021815,2]
[329513240,1718410239752,-506.64833036,0.00021815,2]
[329513242,1718410239788,-155.50315678,0.00021815,2]
[329513243,1718410239820,-259.01814825,0.00021815,2]
[329513244,1718410239874,-235.10641019,0.00021815,2]
[329513245,1718410239904,-406.88424522,0.00021815,2]
[329513246,1718410239927,-296.81340302,0.00021815,2]
[329513247,1718410239960,-155.97953426,0.00021815,2]
[329513248,1718410239973,-652.07814265,0.00021816,2]
[329513249,1718410240014,-263.8016458,0.00021816,2]
[329513250,1718410240024,-10000.0,0.00021817,2]
[329513251,1718410240035,-7500.0,0.00021817,2]
[329513252,1718410240083,-160.72275664,0.00021817,2]
[329513253,1718410240116,-1005.14,0.00021848,2]
[329513254,1718410240148,-93938.7571876,0.00021901,3]
[329513255,1718410240178,-319.13261858,0.00021901,2]
[329513256,1718410240305,-13419.8224554,0.00021903,3]
[329513257,1718410240320,-4473.27415179,0.00021904,3]
[329513258,1718410240335,-8946.54830358,0.00021905,3]
[329513259,1718410240388,-89465.4830358,0.00021907,3]
[329513260,1718410240448,-151.15,0.00021907,2]
[329513261,1718410240460,-283.843,0.00021909,2]
[329513262,1718410240483,-187.57139828,0.00021909,2]
[329513263,1718410240498,-2983.80478246,0.00021909,2]
[329513264,1718410240509,-297.66558178,0.00021909,2]
[329513265,1718410240536,-155.0,0.00021909,2]
[329513268,1718410240582,-158.96899296,0.00021909,2]
[329513271,1718410240596,-2485.09344287,0.00021909,2]
[329513272,1718410240612,-209.41336991,0.00021909,2]
[329513275,1718410240638,-3063.72776014,0.00021909,2]
[329513278,1718410240664,-2285.01619169,0.00021909,2]
[329513280,1718410240736,-2370.40737101,0.00021909,2]
[329513282,1718410240748,-289.11778841,0.00021909,2]
[329513284,1718410240779,-1270.18852319,0.00021909,2]
[329513286,1718410240805,-228.34145972,0.00021909,2]
[329513287,1718410240816,-155.0,0.00021909,2]
[329513289,1718410240835,-298.05454532,0.00021909,2]
[329513290,1718410240848,-282.66487847,0.00021909,2]
[329513292,1718410240921,-164.57038171,0.00021909,2]
[329513293,1718410240980,-158.51532601,0.00021909,2]
[329513294,1718410241072,-537.72037607,0.00021909,2]
[329513295,1718410241098,-490.42437112,0.00021909,2]
[329513296,1718410241123,-1276.54298382,0.00021909,2]
[329513297,1718410241182,-155.11711386,0.00021909,2]
[329513298,1718410241279,-155.31014822,0.00021909,2]
[329513299,1718410241292,-155.0,0.00021909,2]
[329513300,1718410241324,-155.0,0.00021909,2]
[329513301,1718410241352,-155.0,0.00021909,2]
[329513302,1718410241409,-941.12648746,0.00021909,2]
[329513303,1718410241449,-187.78957433,0.00021909,2]
[329513304,1718410241462,-773.05173311,0.00021909,2]
[329513305,1718410241508,-155.0,0.00021909,2]
[329513306,1718410241523,-947.00231839,0.00021909,2]
[329513307,1718410241558,-156.78502539,0.00021909,2]
[329513308,1718410241569,-177.873689,0.00021909,2]
[329513309,1718410241585,-2006.66539938,0.00021909,2]
[329513310,1718410241601,-6266.12845642,0.0002191,2]
[329513311,1718410241652,-188.80480057,0.00021911,7]
[329513312,1718410241685,-7492.99233838,0.00021911,2]
[329513313,1718410241706,-436.76799294,0.00021911,2]
[329513314,1718410241756,-50605.85193262,0.00021911,2]
[329513315,1718410241826,-2614.77220606,0.00021911,2]
[329513316,1718410241841,-5837.96354366,0.00021911,2]
[329513317,1718410241853,-2890.70282993,0.00021911,2]
[329513318,1718410241866,-2895.4299304,0.00021911,2]
[329513319,1718410242442,-267467.82066592,0.00021911,2]
[329513320,1718410242493,-3895.51366502,0.00021911,2]
[329513321,1718410242504,-355.34901942,0.00021911,2]
[329513322,1718410242520,-157.3829013,0.00021912,2]
[329513323,1718410242550,-404.93890684,0.00021912,2]
[329513324,1718410242562,-307.35696763,0.00021912,2]
[329513325,1718410242582,-298.61092271,0.00021912,2]
[329513326,1718410242795,-1342.07599899,0.00021913,2]
[329513327,1718410242840,-156.62138287,0.00021913,2]
[329513328,1718410242855,-155.19970267,0.00021913,2]
[329513329,1718410242866,-155.0,0.00021913,2]
[329513330,1718410242924,-14544.85415988,0.00021913,2]
[329513331,1718410242963,-155.0,0.00021913,2]
[329513332,1718410243005,-824.50033056,0.00021913,2]
[329513333,1718410243053,-155.0,0.00021913,2]
[329513334,1718410243072,-237.7692352,0.00021913,2]
[329513335,1718410243104,-406.08823349,0.00021913,2]
[329513336,1718410243168,-156.13434455,0.00021913,2]
[329513338,1718410243193,-291.07893599,0.00021913,2]
[329513341,1718410243232,-311.62359114,0.00021913,2]
[329513343,1718410243244,-4581.99412309,0.00021913,2]
[329513344,1718410243257,-326.74131311,0.00021913,2]
[329513346,1718410243269,-628.54232723,0.00021913,2]
[329513348,1718410243285,-581.20048005,0.00021913,2]
[329513351,1718410243298,-2110.17937806,0.00021913,7]
[329513353,1718410243311,-365.45085217,0.00021913,2]
[329513354,1718410243326,-3809.27693291,0.00021914,2]
[329513356,1718410243340,-895.95924622,0.00021914,2]
[329513357,1718410243360,-205.74693551,0.00021915,2]
[329513360,1718410243397,-155.0,0.00021915,2]
[329513361,1718410243407,-155.0,0.00021915,2]
[329513362,1718410243434,-155.07470523,0.00021915,2]
[329513364,1718410243460,-525.60111443,0.00021915,2]
[329513366,1718410243482,-1490.75890078,0.00021915,2]
[329513368,1718410243496,-1068.08547647,0.00021915,2]
[329513370,1718410243513,-10981.24661988,0.00021915,2]
[329513372,1718410243529,-268.84906507,0.00021915,2]
[329513374,1718410243550,-155.0,0.00021915,2]
[329513376,1718410243567,-155.0,0.00021915,2]
[329513378,1718410243578,-4293.26084929,0.00021916,2]
[329513379,1718410243591,-267.40800667,0.00021916,2]
[329513381,1718410243603,-500.0,0.00021917,2]
[329513384,1718410243656,-506.76021263,0.00021917,2]
[329513386,1718410243684,-500.0,0.00021917,2]
[329513388,1718410243728,-500.0,0.00021917,2]
[329513390,1718410243757,-500.0,0.00021917,2]
[329513391,1718410243784,-500.0,0.00021917,2]
[329513393,1718410243804,-500.0,0.00021917,2]
[329513394,1718410243830,-500.0,0.00021917,2]
[329513396,1718410243856,-500.0,0.00021917,2]
[329513398,1718410243872,-500.0,0.00021917,2]
[329513400,1718410243909,-500.0,0.00021917,2]
[329513402,1718410243934,-500.0,0.00021917,2]
[329513403,1718410243972,-500.0,0.00021917,2]
[329513405,1718410243991,-500.0,0.00021917,2]
[329513407,1718410244005,-500.0,0.00021917,2]
[329513408,1718410244018,-500.0,0.00021917,2]
[329513410,1718410244032,-500.0,0.00021917,2]
[329513413,1718410244116,-500.0,0.00021917,2]
[329513415,1718410244170,-500.0,0.00021917,2]
[329513417,1718410244188,-500.0,0.00021917,2]
[329513419,1718410244201,-500.0,0.00021917,2]
[329513421,1718410244213,-500.0,0.00021917,2]
[329513424,1718410244264,-500.0,0.00021917,2]
[329513427,1718410244294,-525.51594478,0.00021917,2]
[329513430,1718410244340,-500.0,0.00021917,2]
[329513432,1718410244372,-500.0,0.00021917,2]
[329513434,1718410244406,-500.0,0.00021917,2]
[329513436,1718410244425,-500.0,0.00021917,2]
[329513438,1718410244504,-500.0,0.00021917,2]
[329513439,1718410244537,-500.0,0.00021917,2]
[329513440,1718410244547,-500.0,0.00021917,2]
[329513441,1718410244559,-500.0,0.00021917,2]
[329513442,1718410244569,-500.0,0.00021917,2]
[329513443,1718410244595,-500.0,0.00021917,2]
[329513445,1718410244632,-500.0,0.00021917,2]
[329513446,1718410244668,-500.0,0.00021917,2]
[329513448,1718410244702,-500.0,0.00021917,2]
[329513451,1718410244729,-500.0,0.00021917,2]
[329513453,1718410244741,-500.0,0.00021917,2]
[329513455,1718410244752,-500.0,0.00021917,2]
[329513457,1718410244770,-500.0,0.00021917,2]
[329513460,1718410244841,-500.0,0.00021917,2]
[329513461,1718410244852,-500.0,0.00021917,2]
[329513463,1718410244892,-500.0,0.00021917,2]
[329513465,1718410244907,-500.0,0.00021917,2]
[329513468,1718410244926,-500.0,0.00021917,2]
[329513469,1718410244941,-500.0,0.00021917,2]
[329513471,1718410244953,-500.0,0.00021917,2]
[329513473,1718410244965,-500.0,0.00021917,2]
[329513474,1718410244976,-504.40528146,0.00021917,2]
[329513476,1718410245000,-500.0,0.00021917,2]
[329513478,1718410245014,-500.0,0.00021917,2]
[329513480,1718410245030,-500.0,0.00021917,2]
[329513483,1718410245059,-500.0,0.00021917,2]
[329513485,1718410245092,-500.0,0.00021917,2]
[329513487,1718410245104,-500.0,0.00021917,2]
[329513490,1718410245182,-500.0,0.00021917,2]
[329513492,1718410245194,-500.0,0.00021917,2]
[329513494,1718410245228,-500.0,0.00021917,2]
[329513496,1718410245262,-500.0,0.00021917,2]
[329513497,1718410245274,-500.0,0.00021917,2]
[329513499,1718410245292,-500.0,0.00021917,2]
[329513502,1718410245349,-500.0,0.00021917,2]
[329513504,1718410245367,-500.0,0.00021917,2]
[329513506,1718410245394,-500.0,0.00021917,2]
[329513507,1718410245407,-500.0,0.00021917,2]
[329513509,1718410245420,-500.0,0.00021917,2]
[329513511,1718410245442,-500.0,0.00021917,2]
[329513513,1718410245456,-500.0,0.00021917,2]
[329513515,1718410245483,-500.0,0.00021917,2]
[329513517,1718410245495,-500.0,0.00021917,2]
[329513520,1718410245519,-500.0,0.00021917,2]
[329513522,1718410245533,-500.0,0.00021917,2]
[329513525,1718410245600,-500.0,0.00021917,2]
[329513527,1718410245624,-500.0,0.00021917,2]
[329513529,1718410245656,-500.0,0.00021917,2]
[329513530,1718410245678,-500.0,0.00021917,2]
[329513532,1718410245691,-500.0,0.00021917,2]
[329513534,1718410245709,-500.0,0.00021917,2]
[329513536,1718410245721,-500.0,0.00021917,2]
[329513539,1718410245779,-500.0,0.00021917,2]
[329513541,1718410245802,-500.0,0.00021917,2]
[329513542,1718410245817,-500.0,0.00021917,2]
[329513544,1718410245829,-500.0,0.00021917,2]
[329513547,1718410245863,-500.0,0.00021917,2]
[329513549,1718410245887,-500.0,0.00021917,2]
[329513550,1718410245949,-500.0,0.00021917,2]
[329513553,1718410246005,-336.59,0.00021917,2]
[329513554,1718410246080,-500.0,0.00021917,2]
[329513557,1718410246139,-500.0,0.00021917,2]
[329513558,1718410246161,-500.0,0.00021917,2]
[329513561,1718410246181,-500.0,0.00021917,2]
[329513563,1718410246196,-500.0,0.00021917,2]
[329513566,1718410246267,-500.0,0.00021917,2]
[329513567,1718410246284,-500.0,0.00021917,2]
[329513568,1718410246296,-500.0,0.00021917,2]
[329513570,1718410246315,-500.0,0.00021917,2]
[329513572,1718410246336,-500.0,0.00021917,2]
[329513574,1718410246370,-500.0,0.00021917,2]
[329513576,1718410246392,-500.0,0.00021917,2]
[329513579,1718410246413,-500.0,0.00021917,2]
[329513581,1718410246425,-500.0,0.00021917,2]
[329513583,1718410246440,-500.0,0.00021917,2]
[329513585,1718410246459,-500.0,0.00021917,2]
[329513588,1718410246500,-500.0,0.00021917,2]
[329513590,1718410246516,-500.0,0.00021917,2]
[329513593,1718410246533,-500.0,0.00021917,2]
[329513595,1718410246560,-500.0,0.00021917,2]
[329513598,1718410246587,-500.0,0.00021917,2]
[329513600,1718410246624,-500.0,0.00021917,2]
[329513603,1718410246669,-500.0,0.00021917,2]
[329513606,1718410246701,-500.0,0.00021917,2]
[329513609,1718410246784,-500.0,0.00021917,2]
[329513612,1718410246826,-500.0,0.00021917,2]
[329513614,1718410246843,-500.0,0.00021917,2]
[329513616,1718410246859,-500.0,0.00021917,2]
[329513618,1718410246884,-532.50383462,0.00021917,2]
[329513620,1718410246931,-500.0,0.00021917,2]
[329513623,1718410246963,-500.0,0.00021917,2]
[329513626,1718410246997,-338.81723859,0.00021917,2]
[329513628,1718410247019,-504.9444981,0.00021917,2]
[329513631,1718410247059,-500.0,0.00021917,2]
[329513632,1718410247080,-500.0,0.00021917,2]
[329513634,1718410247093,-500.0,0.00021917,2]
[329513636,1718410247111,-500.0,0.00021917,2]
[329513638,1718410247127,-500.0,0.00021917,2]
[329513640,1718410247147,-500.0,0.00021917,2]
[329513642,1718410247158,-500.0,0.00021917,2]
[329513645,1718410247187,-500.0,0.00021917,2]
[329513646,1718410247220,-500.0,0.00021917,2]
[329513649,1718410247232,-500.0,0.00021917,2]
[329513650,1718410247254,-500.0,0.00021917,2]
[329513652,1718410247313,-500.0,0.00021917,2]
[329513654,1718410247348,-500.0,0.00021917,2]
[329513656,1718410247382,-500.0,0.00021917,2]
[329513657,1718410247428,-500.0,0.00021917,2]
[329513659,1718410247440,-500.0,0.00021917,2]
[329513662,1718410247477,-500.0,0.00021917,2]
[329513664,1718410247492,-500.0,0.00021917,2]
[329513666,1718410247510,-500.0,0.00021917,2]
[329513668,1718410247524,-500.0,0.00021917,2]
[329513670,1718410247547,-500.0,0.00021917,2]
[329513672,1718410247582,-500.0,0.00021917,2]
[329513673,1718410247604,-500.0,0.00021917,2]
[329513674,1718410247635,-500.0,0.00021917,2]
[329513675,1718410247661,-500.0,0.00021917,2]
[329513676,1718410247680,-500.0,0.00021917,2]
[329513677,1718410247707,-500.0,0.00021917,2]
[329513678,1718410247737,-500.0,0.00021917,2]
[329513679,1718410247749,-443.91002812,0.00021917,2]
[329513697,1718410248427,-56.08997188,0.00021917,2]
[329513698,1718410248440,-500.0,0.00021917,2]
[329513700,1718410248459,-500.0,0.00021917,2]
[329513702,1718410248478,-500.0,0.00021917,2]
[329513703,1718410248494,-500.0,0.00021917,2]
[329513704,1718410248544,-500.0,0.00021917,2]
[329513705,1718410248564,-500.0,0.00021917,2]
[329513706,1718410248592,-500.0,0.00021917,2]
[329513707,1718410248607,-500.0,0.00021917,2]
[329513708,1718410248652,-500.0,0.00021917,2]
[329513709,1718410248669,-500.0,0.00021917,2]
[329513710,1718410248685,-500.0,0.00021917,2]
[329513711,1718410248703,-500.0,0.00021917,2]
[329513712,1718410248723,-500.0,0.00021917,2]
[329513713,1718410248746,-500.0,0.00021917,2]
[329513714,1718410248772,-500.0,0.00021917,2]
[329513715,1718410248815,-500.0,0.00021917,2]
[329513716,1718410248834,-500.0,0.00021917,2]
[329513717,1718410248848,-500.0,0.00021917,2]
[329513718,1718410248881,-500.0,0.00021917,2]
[329513719,1718410248940,-500.0,0.00021917,2]
[329513720,1718410248958,-500.0,0.00021917,2]
[329513721,1718410249003,-435.61,0.00021917,2]
[329513722,1718410249018,-261.7017861,0.00021917,2]
[329513723,1718410249078,-238.2982139,0.00021917,2]
[329513724,1718410249116,-500.0,0.00021917,2]
[329513725,1718410249131,-116.5625067,0.00021917,2]
[329513726,1718410249184,-309.26013827,0.00021917,2]
[329513735,1718410250373,-1066.0,0.00021646,2]
[329513737,1718410250397,-74.17735503,0.00021917,2]
[329513740,1718410250434,-1383.49,0.00021917,2]
[329513741,1718410250449,-500.0,0.00021917,2]
[329513742,1718410250467,-462.43264497,0.00021917,2]
[329513743,1718410251783,-229.98373696,0.00021811,2]
[329513744,1718410251804,-4420.01626304,0.00021817,2]
[329513745,1718410251820,-5579.98373696,0.00021817,2]
[329513746,1718410251832,-37.56735503,0.00021917,2]
[329513747,1718410251851,-500.0,0.00021917,2]
[329513748,1718410251879,-500.0,0.00021917,2]
[329513749,1718410251915,-500.0,0.00021917,2]
[329513750,1718410251931,-500.0,0.00021917,2]
[329513751,1718410251960,-500.0,0.00021917,2]
[329513752,1718410251972,-500.0,0.00021917,2]
[329513753,1718410251985,-500.0,0.00021917,2]
[329513754,1718410252000,-500.0,0.00021917,2]
[329513755,1718410252014,-500.0,0.00021917,2]
[329513756,1718410252047,-500.0,0.00021917,2]
[329513757,1718410252098,-500.0,0.00021917,2]
[329513758,1718410252124,-500.0,0.00021917,2]
[329513759,1718410252153,-500.0,0.00021917,2]
[329513760,1718410252184,-500.0,0.00021917,2]
[329513761,1718410252212,-500.0,0.00021917,2]
[329513762,1718410252225,-500.0,0.00021917,2]
[329513763,1718410252239,-500.0,0.00021917,2]
[329513764,1718410252254,-500.0,0.00021917,2]
[329513765,1718410252290,-500.0,0.00021917,2]
[329513766,1718410252331,-150.0,0.00021917,2]
[329513767,1718410252349,-500.0,0.00021917,2]
[329513768,1718410252365,-500.0,0.00021917,2]
[329513769,1718410252377,-273.28,0.00021917,2]
[329513770,1718410252388,-500.0,0.00021917,2]
[329513771,1718410252410,-500.0,0.00021917,2]
[329513772,1718410252423,-500.0,0.00021917,2]
[329513773,1718410252438,-265.79981785,0.00021917,2]
[329513774,1718410252465,-234.20018215,0.00021917,2]
[329513775,1718410252478,-500.0,0.00021917,2]
[329513776,1718410252493,-500.0,0.00021917,2]
[329513777,1718410252510,-500.0,0.00021917,2]
[329513778,1718410252521,-262.02540502,0.00021917,2]
[329513779,1718410252541,-500.0,0.00021917,2]
[329513780,1718410252552,-500.0,0.00021917,2]
[329513781,1718410252564,-500.0,0.00021917,2]
[329513782,1718410252584,-500.0,0.00021917,2]
[329513783,1718410252597,-500.0,0.00021917,2]
[329513784,1718410252612,-500.0,0.00021917,2]
[329513785,1718410252623,-500.0,0.00021917,2]
[329513786,1718410252635,-465.14527913,0.00021917,2]
[329513787,1718410252650,-34.85472087,0.00021917,2]
[329513790,1718410252663,-500.0,0.00021917,2]
[329513792,1718410252675,-12.7386428,0.00021917,2]
[329513795,1718410252690,-487.2613572,0.00021917,2]
[329513799,1718410252704,-500.0,0.00021917,2]
[329513803,1718410252715,-500.0,0.00021917,2]
[329513808,1718410252728,-500.0,0.00021917,2]
[329513813,1718410252743,-500.0,0.00021917,2]
[329513816,1718410252758,-500.0,0.00021917,2]
[329513818,1718410252775,-500.0,0.00021917,2]
[329513821,1718410252790,-500.0,0.00021917,2]
[329513823,1718410252804,-537.97749178,0.00021917,2]
[329513825,1718410252825,-500.0,0.00021917,2]
[329513828,1718410252840,-500.0,0.00021917,2]
[329513831,1718410252856,-536.17449525,0.00021917,2]
[329513834,1718410252871,-500.0,0.00021917,2]
[329513837,1718410252886,-500.0,0.00021917,2]
[329513840,1718410252900,-500.0,0.00021917,2]
[329513845,1718410252915,-277.13,0.00021917,2]
[329513848,1718410252965,-418.41,0.00021917,2]
[329513851,1718410252978,-500.0,0.00021917,2]
[329513854,1718410253004,-500.0,0.00021917,2]
[329513858,1718410253049,-500.0,0.00021917,2]
[329513859,1718410253060,-500.0,0.00021917,2]
[329513861,1718410253101,-500.0,0.00021917,2]
[329513863,1718410253114,-329.33363486,0.00021917,2]
[329513876,1718410253415,-500.0,0.00021917,2]
[329513878,1718410253436,-500.0,0.00021917,2]
[329513881,1718410253498,-500.0,0.00021917,2]
[329513883,1718410253511,-2031.31,0.00021917,2]
[329513886,1718410253564,-500.0,0.00021917,2]
[329513888,1718410253575,-93.97723092,0.00021917,2]
[329513890,1718410253592,-406.02276908,0.00021917,2]
[329513894,1718410253621,-500.0,0.00021917,2]
[329513896,1718410253657,-500.0,0.00021917,2]
[329513899,1718410253689,-500.0,0.00021917,2]
[329513901,1718410253703,-613.73,0.00021917,2]
[329513904,1718410253728,-333.12467707,0.00021917,2]
[329513905,1718410253748,-500.0,0.00021917,2]
[329513908,1718410253774,-500.0,0.00021917,2]
[329513910,1718410253788,-557.17,0.00021917,2]
[329513912,1718410253808,-500.0,0.00021917,2]
[329513914,1718410253823,-500.0,0.00021917,2]
[329513916,1718410253850,-500.0,0.00021917,2]
[329513919,1718410253861,-500.0,0.00021917,2]
[329513920,1718410253871,-395.35897951,0.00021917,2]
[329513922,1718410253897,-675.73,0.00021917,2]
[329513924,1718410253951,-500.0,0.00021917,2]
[329513928,1718410254041,-500.0,0.00021917,2]
[329513930,1718410254074,-500.0,0.00021917,2]
[329513933,1718410254109,-500.0,0.00021917,2]
[329513935,1718410254151,-432.78136909,0.00021917,2]
[329513937,1718410254166,-500.0,0.00021917,2]
[329513939,1718410254177,-500.0,0.00021917,2]
[329513941,1718410254189,-500.0,0.00021917,2]
[329513943,1718410254200,-500.0,0.00021917,2]